Cogmind - Beta 13 @@@ ROGUE MODE // 2024.07.28 @ 11:14:10 Player: syanka Result: Self-destructed Performance ------------- Evolutions (3) 1500 Regions Visited (4) 800 Robots Destroyed (141) 705 Value Destroyed (3323) 3323 Prototype IDs (9) 180 Alien Tech Used (0) 0 Bonus (171) 171 TOTAL SCORE: 6679 Bonus ------- High Alert Combat Kills 171 Cogmind --------- Core Integrity 513/700 Matter 244/300 Energy 100/100 System Corruption 1% Temperature Cool (0) Movement Flying (175) Ox2 Location -7/Factory Parts ------- > --- POWER (2) -------- (None) > --- PROPULSION (4) --- Improved VTOL Module > --- UTILITY (5) ------ Medium Storage Unit Structural Scanner Machine Analyzer Hacking Suite Hacking Suite > --- WEAPON (2) ------- Heavy Hammer > --- INVENTORY (10) --- Improved Cooling System Improved Sensor Array Improved Signal Interpreter ECM Suite Improved Shield Generator Hacking Suite System Shield Improved Assault Rifle Datajack Scythe Peak State ------------ > --- POWER ------------ Enhanced Nuclear Core Enhanced Nuclear Core > --- PROPULSION ------- Advanced Treads Improved Flight Unit Improved Flight Unit Improved VTOL Module > --- UTILITY ---------- Improved Cooling System Improved Cooling System Huge Storage Unit Seismic Detector Improved Targeting Computer > --- WEAPON ----------- Ion Cannon Ion Cannon > --- INVENTORY -------- Light Deuterium Engine Light Deuterium Engine Improved Treads Improved Flight Unit Medium Storage Unit Structural Scanner Machine Analyzer Improved Signal Interpreter Improved Terrain Scanner ECM Suite Utility Shielding Hardened Light Armor Plating Insulated Plating Hacking Suite Hacking Suite Advanced Beam Rifle Light EM Pulse Cannon Improved Assault Rifle Grenade Launcher Mini Grenade Launcher Datajack Heavy Hammer Scythe [Rating: 46] Favorites ----------- Power Enhanced Nuclear Core Engine Cooled Ion Engine Power Core Enhanced Nuclear Core Propulsion Improved Treads Treads Improved Treads Wheel Wheel Flight Unit Xenon Bombardment Thruster Utility Seismic Detector Device Seismic Detector Storage Huge Storage Unit Processor Improved Targeting Computer Hackware Hacking Suite Protection Hardened Light Armor Plating Weapon Ion Cannon Energy Gun Small Laser Energy Cannon Ion Cannon Ballistic Gun Improved Assault Rifle Launcher Grenade Launcher Impact Weapon Heavy Hammer Slashing Weapon Scythe Build | -11 -10 -9 -8 -7 ------- Run | Yrd Mat Mat Mat Fac Slots Evolved 6 | . . 2 2 2 Power 1 | . . . 1 . Propulsion 2 | . . . . 2 Utility 3 | . . 2 1 . Weapon . | . . . . . Parts Attached 135 | 8 33 36 34 24 Power 15 | 1 3 1 8 2 Engine 9 | 1 3 1 2 2 Core 6 | . . . 6 . Reactor . | . . . . . Propulsion 42 | 3 17 10 6 6 Treads 14 | . 7 2 5 . Leg . | . . . . . Wheel 21 | 3 10 8 . . Hover . | . . . . . Flight 7 | . . . 1 6 Utility 27 | 2 5 6 7 7 Device 17 | 1 4 4 5 3 Storage 4 | 1 1 1 . 1 Processor 2 | . . 1 . 1 Hackware 2 | . . . . 2 Protection 2 | . . . 2 . Artifact . | . . . . . Weapon 51 | 2 8 19 13 9 Energy Gun 11 | 1 5 4 1 . Energy Cannon 18 | . . 9 9 . Ballistic Gun 7 | 1 1 2 . 3 Ballistic Cannon . | . . . . . Launcher 9 | . 2 4 2 1 Special Weapon . | . . . . . Impact Weapon 4 | . . . 1 3 Slashing Weapon 2 | . . . . 2 Piercing Weapon . | . . . . . Special Melee Weapon . | . . . . . Unidentified Prototypes 8 | . . 4 4 . Parts Lost 14 | . 3 3 2 6 Power 1 | . . . . 1 Propulsion 8 | . 1 3 1 3 Utility 1 | . . . . 1 Weapon 4 | . 2 . 1 1 Highest Loss Streak 5 | . 3 2 1 5 To Critical Strikes . | . . . . . Average Slot Usage (%) 98 | . 99 98 99 89 Engine 5 | . 14 11 . 6 Core 9 | . . . 17 1 Treads 10 | . 8 . 16 1 Wheel 7 | . 19 20 . . Flight 2 | . . . . 27 Device 20 | . 14 25 23 10 Storage 10 | . 14 11 9 7 Processor 6 | . . 7 9 5 Hackware 1 | . . . . 13 Protection 1 | . . . 3 . Energy Gun 4 | . 23 3 . . Energy Cannon 13 | . . 18 17 1 Ballistic Gun 1 | . 4 . . 5 Naked Turns . | . . . . . Heaviest Build 117 | 14 91 99 117 113 Greatest Support 45 | 26 40 30 45 45 Greatest Overweight (x) 9 | 1 9 8 9 2 Average Overweight (x) 1 | . 2 4 2 . Largest Inventory Capacity 25 | 8 25 25 25 25 Average Capacity 22 | 7 19 25 25 11 Most Carried 25 | 8 25 25 25 25 Average Carried 22 | 5 16 24 24 11 Final Capacity 25 | 8 25 25 25 10 Final Carried 25 | 8 25 25 25 10 Class Distribution -------------------- 83% | Mutant 8% | Hacker-Sprinter 7% | Scavenger-Mutant Dominant Class ---------------- Mutant | -10/Materials Mutant | -9/Materials Mutant | -8/Materials Hacker-Sprinter | -7/Factory Resources | -11 -10 -9 -8 -7 ----------- Run | Yrd Mat Mat Mat Fac Matter Collected 1775 | 286 373 431 445 240 Remotely . | . . . . . Salvage Created 5353 | 117 1075 1666 2213 282 Parts 295 | 13 67 100 93 22 Haulers Intercepted 14 | . 2 6 6 . Recyclers Shooed 6 | . . 4 2 . Parts Field Recycled . | . . . . . Retrieved Matter . | . . . . . Parts Self-Destructed . | . . . . . Prevented . | . . . . . Kills | -11 -10 -9 -8 -7 ------- Run | Yrd Mat Mat Mat Fac Combat Hostiles Destroyed 70 | . 13 28 22 7 Melee 2 | . . . . 2 Guns 10 | . 9 . . 1 Cannons 30 | . . 15 15 . AOE 24 | . 4 13 4 3 Classes Destroyed 16 | 2 7 3 2 2 Worker 8 | . 4 1 3 . Builder 11 | . 6 1 1 3 Tunneler 7 | 3 2 . 2 . Hauler 14 | . 2 6 6 . Recycler 13 | 1 1 6 5 . Mechanic 2 | . 1 1 . . Operator 6 | . 2 2 1 1 Drone 1 | . . . . 1 Watcher 11 | . 1 3 5 2 Swarmer 16 | . . 13 . 3 Grunt 32 | . 13 6 13 . Brawler 2 | . . 1 1 . Duelist 1 | . . . 1 . Sentry 15 | . . 8 6 1 Hunter 2 | . . . 1 1 Programmer 1 | . . . . 1 Best Kill Streak 9 | 4 5 8 5 9 Combat Bots Only 6 | . 3 5 4 6 Max Kills in Single Turn 4 | 1 2 3 3 4 Gunslinging . | . . . . . Exploded 3 | . 2 3 3 2 Melee 1 | . . . . 1 Uniques/NPCs Destroyed . | . . . . . Combat | -11 -10 -9 -8 -7 -------- Run | Yrd Mat Mat Mat Fac Hostile Shots Fired 332 | . 72 67 82 111 Missed 119 | . 16 28 24 51 Damage Taken 2943 | . 735 589 952 667 Core 578 | . 139 110 142 187 Absorbed by Shields . | . . . . . Regen/Repaired (Parts) 98 | . 33 . 65 . Core Remaining (%) 72 | 100 44 72 74 . Volleys Fired 286 | 7 79 96 92 12 Largest 2 | 2 2 2 2 1 Hottest 136 | 60 105 136 128 36 Shots Fired 539 | 14 150 183 180 12 Gun 204 | 14 147 36 . 7 Cannon 312 | . . 138 174 . Launcher 23 | . 3 9 6 5 Special . | . . . . . Kinetic 37 | 7 23 . . 7 Thermal 312 | . 59 142 111 . Explosive 23 | . 3 9 6 5 Electromagnetic 167 | 7 65 32 63 . Robot Hit Streak 15 | 4 11 8 15 4 Robot Miss Streak 5 | 1 5 4 3 4 Penetration Max . | . . . . . Secondary Targets 1 | . 1 . . . Max Gunslinging Chain 1 | . 1 . . . Shots Hit Robots 351 | 8 94 114 120 15 Core Hits 181 | 4 48 53 62 14 Critical Kills 3 | . . 2 1 . Critical Parts Destroyed 4 | . . . . 4 Critical Strikes 13 | . 3 5 1 4 Burn 2 | . 1 1 . . Meltdown 3 | . . 2 1 . Corrupt 4 | . 2 2 . . Smash 4 | . . . . 4 Melee Attacks 56 | . . . . 56 Impact 25 | . . . . 25 Slashing 31 | . . . . 31 Piercing . | . . . . . Sneak Attacks 1 | . . . . 1 Combat Hostiles 1 | . . . . 1 Follow-up Attacks . | . . . . . Damage Inflicted 9082 | 93 1510 3079 3479 921 Guns 1626 | 93 1214 272 . 47 Cannons 4736 | . . 1902 2834 . Explosions 2172 | . 263 903 609 397 Melee 477 | . . . . 477 Ramming 71 | . 33 2 36 . Kinetic 185 | 12 126 . . 47 Thermal 4254 | . 563 1748 1889 54 Explosive 1814 | . 202 835 434 343 Electromagnetic 2281 | 81 586 494 1120 . Impact 320 | . . . . 320 Slashing 157 | . . . . 157 Piercing . | . . . . . Highest Corruption 2 | . . . 2 1 Average Corruption 1 | . . . 2 1 Corruption Purged . | . . . . . Corruption Blocked . | . . . . . Effects 45 | . . . 44 1 Message Errors 12 | . . . 12 . Matter Fused 8 | . . . 8 . Heat Flow Errors 3 | . . . 3 . Energy Discharges 7 | . . . 6 1 Parts Fused 1 | . . . 1 . Data Loss (minor) 7 | . . . 7 . Data Loss (major) 1 | . . . 1 . Misfires 3 | . . . 3 . Alerts 2 | . . . 2 . Weapon Failures 1 | . . . 1 . Overload Shots . | . . . . . Overflow Damage 355 | . . 90 26 239 Projectiles 76 | . . 57 19 . Explosions 78 | . . 33 7 38 Melee 201 | . . . . 201 Knockbacks 1 | . . . . 1 Impact 1 | . . . . 1 Kinetic . | . . . . . Secondary . | . . . . . Self-Inflicted Damage 239 | . 49 141 49 . Shots 7 | . 1 4 2 . Rammed 7 | . 2 1 4 . Targets Rammed 7 | . 2 1 4 . Kicked . | . . . . . Crushed . | . . . . . Highest Temperature 270 | 40 270 54 228 . Average Temperature 55 | 18 62 17 64 . Received Heat Transfer 1125 | . 375 132 558 60 Siege Activations . | . . . . . Robots Corrupted 2 | . . . 2 . Combat Hostiles 2 | . . . 2 . Parts Fried 16 | . . 2 10 4 Impact Corruptions 7 | . . . . 7 Robots Melted 3 | . . 2 1 . Combat Hostiles 1 | . . . 1 . Parts Melted 15 | . 3 6 6 . Heat Transferred 7649 | . 1323 3288 2988 50 Parts Sabotaged . | . . . . . Parts Stolen . | . . . . . Parts Stripped . | . . . . . Power Chain Reactions 6 | . 1 2 3 . Alert | -11 -10 -9 -8 -7 ------- Run | Yrd Mat Mat Mat Fac Peak Influence 682 | 20 190 627 567 682 Initial 257 | . 13 61 252 257 Average 296 | 4 90 264 364 355 Maximum Alert Level 2 | . . 2 2 2 Low Security (%) 30 | 100 100 40 10 1 Level 1 27 | . . 22 31 64 Level 2 41 | . . 36 58 34 Level 3 . | . . . . . Level 4 . | . . . . . Level 5 . | . . . . . High Security . | . . . . . Max Security . | . . . . . Squads Dispatched 12 | . 3 3 2 4 Investigation 4 | . 1 . 1 2 Extermination 1 | . . . . 1 Reinforcement 5 | . 2 2 1 . Assault 2 | . . 1 . 1 Garrison . | . . . . . Intercept . | . . . . . Searches Triggered . | . . . . . Construction Impeded 1 | . . . 1 . Haulers Reinforced . | . . . . . Active Scanning Responses . | . . . . . Cargo Convoy Interrupts . | . . . . . Stealth | -11 -10 -9 -8 -7 --------- Run | Yrd Mat Mat Mat Fac Distress Signals 9 | . 2 2 2 3 Communications Jammed . | . . . . . Distress Signals . | . . . . . Times Spotted 132 | . 31 42 40 19 Peak Tracking Total 9 | . 6 6 4 9 Tactical Retreats 20 | . 3 1 10 6 Traps | -11 -10 -9 -8 -7 ------- Run | Yrd Mat Mat Mat Fac Traps Triggered 3 | . 1 1 1 . Indirectly . | . . . . . Trap Hack Attempts . | . . . . . Triggered . | . . . . . Disarmed . | . . . . . Reprogrammed . | . . . . . Reused . | . . . . . Traps Extracted . | . . . . . Installed . | . . . . . Triggered . | . . . . . Machines | -11 -10 -9 -8 -7 ---------- Run | Yrd Mat Mat Mat Fac Machines Disabled 16 | . 3 3 4 6 Max in Single Turn 5 | . 1 1 1 5 Garrison Access 3 | . . . . 3 Machines Repaired . | . . . . . Machines Dismantled . | . . . . . Machines Sabotaged . | . . . . . Overloaded Fab Kills . | . . . . . Hacking | -11 -10 -9 -8 -7 --------- Run | Yrd Mat Mat Mat Fac Machines Accessed 25 | . 3 4 9 9 Terminals 15 | . 2 3 5 5 Fabricators 1 | . . . . 1 Repair Stations 3 | . 1 1 1 . Recycling Units 2 | . . . 2 . Scanalyzers 1 | . . . 1 . Garrison Access 3 | . . . . 3 Total Hacks 67 | . 11 12 22 22 Successful 37 | . 4 6 14 13 Failed 29 | . 6 6 8 9 Catastrophic 3 | . 1 . 1 1 Database Lockouts 1 | . 1 . . . Manual 20 | . 5 6 4 5 Terminals 38 | . 7 10 8 13 Fabricators 4 | . . . . 4 Repair Stations 12 | . 4 2 6 . Recycling Units 4 | . . . 4 . Scanalyzers 4 | . . . 4 . Garrison Access 5 | . . . . 5 Terminal Hacks 19 | . 2 5 5 7 Part Schematic 1 | . . . . 1 Robot Analysis 4 | . 1 3 . . Open DSF 1 | . . . . 1 Branch Access Points 1 | . . . . 1 Terminal Index 1 | . . . . 1 Locate Traps 8 | . . 2 5 1 Dispatch Records 1 | . 1 . . . Surveillance Status 1 | . . . . 1 Recall Investigation 1 | . . . . 1 Fabricator Hacks 3 | . . . . 3 Network Status 1 | . . . . 1 Load Schematic 1 | . . . . 1 Build 1 | . . . . 1 Repair Station Hacks 7 | . 2 1 4 . Scan Component 4 | . 1 1 2 . Repair 3 | . 1 . 2 . Recycling Unit Hacks 2 | . . . 2 . Retrieve Components 2 | . . . 2 . Scanalyzer 3 | . . . 3 . Insert Component 1 | . . . 1 . Analyze 2 | . . . 2 . Garrison Access Hacks 2 | . . . . 2 Seal Access 2 | . . . . 2 Unauthorized Hacks 1 | . . . . 1 Terminals 1 | . . . . 1 Assimilate 1 | . . . . 1 Fabricators . | . . . . . Repair Stations . | . . . . . Recycling Units . | . . . . . Scanalyzers . | . . . . . Garrison Access . | . . . . . Data Cores Recovered 3 | . . 1 1 1 Used . | . . . . . Hacking Detections 16 | . 2 3 7 4 Full Trace Events 2 | . . . . 2 Feedback Events . | . . . . . Feedback Blocked . | . . . . . Robot Schematics Acquired . | . . . . . Robots Built . | . . . . . Authchips . | . . . . . Time . | . . . . . Total Robot Build Rating . | . . . . . Part Schematics Acquired 2 | . . . 1 1 Parts Built 1 | . . . . 1 Authchips . | . . . . . Time 36 | . . . . 36 Total Part Build Rating 3 | . . . . 3 Parts Repaired 3 | . 1 . 2 . Time 96 | . 26 . 70 . Parts Recycled . | . . . . . Recycled Matter . | . . . . . Retrieved Matter . | . . . . . Retrieved Components 10 | . . . 10 . Parts Scanalyzed 1 | . . . 1 . Part Schematics Acquired 1 | . . . 1 . Parts Damaged . | . . . . . Bothacking | -11 -10 -9 -8 -7 ------------ Run | Yrd Mat Mat Mat Fac Used RIF Installer . | . . . . . Robots Hacked . | . . . . . Non-combat . | . . . . . Combat . | . . . . . Robot Hacks Applied . | . . . . . Relay Couplers Released 2 | . . . . 2 Machine Destruction 2 | . . . . 2 Fabnet Peak Effective % . | . . . . . Robots Rewired . | . . . . . Allies Hacked . | . . . . . Hacks Repelled . | . . . . . Allies | -11 -10 -9 -8 -7 -------- Run | Yrd Mat Mat Mat Fac Total Allies 1 | . . . . 1 Largest Group 1 | . . . . 1 Highest-Rated Group 10 | . . . . 10 Highest-Rated Ally 10 | . . . . 10 Total Orders . | . . . . . Ally Attacks . | . . . . . Total Damage . | . . . . . Kills . | . . . . . Allies Corrupted . | . . . . . Allies Melted . | . . . . . Intel | -11 -10 -9 -8 -7 ------- Run | Yrd Mat Mat Mat Fac Robot Analysis Total 4 | . 1 3 . . Derelict Logs Recovered . | . . . . . Drone Launches . | . . . . . Drone Recoveries . | . . . . . Exploration | -11 -10 -9 -8 -7 ------------- Run | Yrd Mat Mat Mat Fac Turns Passed 10976 | 86 1830 2027 5954 1079 Spaces Moved 5877 | 56 874 1053 1763 2131 Core 12 | 12 . . . . Treads 1774 | . 132 . 1615 27 Legs . | . . . . . Wheels 1987 | 44 742 1053 148 . Hover . | . . . . . Flight 2104 | . . . . 2104 Fastest Speed 29 | 50 80 125 145 29 Average Speed 151 | 82 143 148 302 32 Slowest Speed 480 | 100 320 210 480 312 Overloaded Moves . | . . . . . Propulsion Burnouts . | . . . . . Robots Hopped 1 | . . . . 1 Cave-ins Triggered . | . . . . . Exploration Rate (%) 60 | 4 98 84 79 35 Regions Visited 4 Branch Regions . Pre-discovered Areas . | . . . . . Known Exits Taken . | . . . . . Unknown Exits Taken 4 | 1 1 1 1 . Scrap Searched . | . . . . . Spaces Dug 44 | . . . 7 37 Terrain Destroyed 272 | . 39 71 60 102 Melee 37 | . . . . 37 Projectile 12 | . . . 12 . AOE 223 | . 39 71 48 65 Terrain Rammed . | . . . . . Walls Destroyed . | . . . . . Machines Disabled . | . . . . . Actions | -11 -10 -9 -8 -7 --------- Run | Yrd Mat Mat Mat Fac Total 7346 | 79 1302 1345 2209 2411 Wait 745 | . 253 91 248 153 Move 5871 | 55 873 1052 1762 2129 Hop 1 | . . . . 1 Pick Up 116 | 9 38 32 28 9 Fast Attach 25 | 5 2 4 11 3 Attach 18 | 2 3 4 3 6 Detach 5 | . 1 . . 4 Swap 92 | 1 28 28 20 15 Drop 124 | . 23 37 41 23 Fire 286 | 7 79 96 92 12 Melee 56 | . . . . 56 Ram 3 | . 2 1 . . Kick . | . . . . . Crush 4 | . . . 4 . Escape Stasis . | . . . . . Rewire . | . . . . . Trap . | . . . . . Miscellaneous . | . . . . . Route ------- -11/Scrapyard -10/Materials (discovered 4 exits: *Mat x3 / [*Min]) -9/Materials (discovered 4 exits: *Mat x3 / [*Min]) -8/Materials (discovered 3 exits: *Fac x3) -7/Factory (discovered 6 exits: [*Fac x2] / Sto x2 / Low x2) History --------- Turn | Location | Event 22 | -11/Scrapyard | Discovered new exit (range 16) 87 | -11/Scrapyard | Entered Materials 98 | -10/Materials | Central database locked down 300 | -10/Materials | Build established: Mutant 528 | -10/Materials | Discovered new exit (range 11) 831 | -10/Materials | Discovered new exit (range 16) 1190 | -10/Materials | Repaired EM Pulse Gun 1334 | -10/Materials | Core integrity fell below 50% 1368 | -10/Materials | Lost 3 parts (1n2w) 1526 | -10/Materials | Discovered new exit (range 10) 1739 | -10/Materials | Discovered new exit (range 8) 1814 | -10/Materials | Build established: Scavenger-Mutant 1917 | -10/Materials | Entered another Materials area 1917 | -9/Materials | Evolved 2 slots: Utility x2 2142 | -9/Materials | Discovered new exit (range 16) 2318 | -9/Materials | Discovered new exit (range 8) 2401 | -9/Materials | Build established: Mutant 2697 | -9/Materials | Discovered new exit (range 8) 2942 | -9/Materials | Discovered new exit (range 7) 3917 | -9/Materials | First assault squad dispatched 3944 | -9/Materials | Entered another Materials area 3944 | -8/Materials | Evolved 2 slots: Power x1, Utility x1 5003 | -8/Materials | Discovered new exit (range 4) 5562 | -8/Materials | Discovered new exit (range 16) 5778 | -8/Materials | Repaired Lgt. EM Pulse Cannon 5817 | -8/Materials | Repaired Hacking Suite 6594 | -8/Materials | Discovered new exit (range 10) 9898 | -8/Materials | Entered Factory 9898 | -7/Factory | Evolved 2 slots: Propulsion x2 10117 | -7/Factory | Identified exit to DSF 10284 | -7/Factory | Build established: Hacker-Sprinter 10426 | -7/Factory | Identified exit to Storage 10426 | -7/Factory | Identified exit to Lower Caves 10595 | -7/Factory | Discovered new exit (range 16) 10620 | -7/Factory | Discovered new exit (range 3) 10685 | -7/Factory | Fabricated Imp. Sensor Array (x1) 10977 | -7/Factory | Self-destructed Last Messages --------------- 10963_ Penetrated by Slug. 10963_ Lgt. Deuterium Engine destroyed. 10964_ Y-54 Guardian system terminally corrupted. 10964_ Flak Gun fried. 10964_ Imp. Deuterium Engine fried. 10964_ U-05 Engineer lays Concrete. 10964_ K-01 Serf collects debris. 10965_ U-05 Engineer lays Concrete. 10966_ Penetrated by Slug. 10967_ U-05 Engineer lays Concrete. 10968_ K-01 Serf collects debris. 10968_ U-05 Engineer lays Concrete. 10971_ R-06 Scavenger collects Autogun. 10971_ U-05 Engineer lays Concrete. 10973_ Slug penetrates Wall. 10973_ U-05 Engineer lays Concrete. 10975_ R-06 Scavenger collects Structural Scanner. 10975_ R-06 Scavenger collects Lgt. Ion Engine. 10975_ U-05 Engineer lays Concrete. 10976_ Slug penetrates Wall. Map ----- +----------------------------------------------------+ | #### ! """" """" ####???## # ! | | #####?? """" """" ####???## """" """ #+##+### | | ??????? ??"""" """" ##?????## """" """ # | | ??????????"""" """" ##?????## """" """ # | | ??????????"""" """" ##?????## """" + | | ### ??????""""?"""" ##?????## # | | ### ??????""""?"""" ##?????## """" """" # | | # ?????????????? ##?????## """" """" ######## | | # ???????? ##?????## """" """" ######## | | # ??????? ##????### """" """" ##????## | | # ######### ##????## | | #####+#### ###############"#######????## | | # # ## """T""" #######????## | | + # ## ##?????###### | | # """ # ## """ """ """ #####??###### | | # """ # r ## """ """ """ ####! # | | ### """ # ## """ """ """ #### """ # | | ### # ## #### """ # | | ?## !!! # #########/##########! """ # | | ?## !!! # # # | | ?## !!! # [% # """ # | | ?## # + """ # | | ?## """ # # """ / | | ?## """ # s # # | | ?## """ #############%########## # """ # | | ?## ######## @ #### # """ # | | ?## """ ##????## #### #] """ # | | ?## ] """ ##????## = #### # ### | | ?## """ ##????## %* #### ########## | | ?##! ##????## = #### # | | ?#####+######????## =% #### # | | ?##### ######????## =%r #### # | | ?????????????????### =% % #### # | | ?????????????????## ! r ### # | | ?????????????????## w ## # """ """ | | ????????????????## uu ### # """ """ | | ????????????????### ## + """ """ | | ????????????????#### # + ## ########## | | ?????????????????### # # ## # | | ???????????######### #;"" # ## # ???????? | | ????????############""" # ???????????? | | ???????? # #! # ?????????????? | | ???????? # # # ?????????????? | | ???????? # # " " " " " # ?????????????? | | ???????? # # " " " " " # ?????????????? | | ???????? # ! # " " " " " # ?????????????? | | ????????## # " " " " " # ?????????????? | | T???????## # " " " " " # ?????????????? | | ????????##%= # " " " " " # ?????????????? | | ???????? + # " " " " " # ?????????????? | +----------------------------------------------------+ Best States ------------- Heat Dissipation 88 Energy Generation 29 Energy Capacity 500 Matter Stores 300 Matter Capacity 300 Sight Range 16 Terrain Scan Density 10 Additional Mass Support 6 Armor Coverage 150 Evasion (%) 64 Targeting Accuracy 6 Recoil Reduction 2 Offensive Hacking 20 Item Schematics ----------------- Imp. Flight Unit | -8/Materials | Scanalyzed Imp. Sensor Array | -7/Factory | Hacked Robot Schematics ------------------ None Fabricated ------------ Imp. Sensor Array | x1 | -7/Factory Alien Tech Used ----------------- None Achievements -------------- None Challenges ------------ None Game ------ Seed CryofiberThrowingCoupler Manual? 0 Play Time 02:09:32 Cumulative 61.4 hours Start 2024.07.26 @ 12:34:28 End 2024.07.28 @ 11:14:10 Sessions 5 Manual Loads 0 Difficulty Rogue Special Mode None Game No. 42 Rogue 29 Adventurer 13 Explorer 0 Win Type - Total 0 Types 0/0/0/0/0/0/0/0/0 Lore% 26 Gallery% 41 Achievement% 35 Wizard Run 0 Options --------- Layout 2 ASCII 0 Keyboard 1 Movement Numpad Keybinds 0 Fullscreen 2 Font 16/Swanston Map View 55x47 Zoom Use 0% Tactical HUD 1 Map Filters NONE Filters NONE Steam 0 RUN: af17392a-039d-46e1-8d41-8b85e658a03f